bitfinex/quotes_SOLUSD_20250402
["timestamp","ask_amount","ask_price","bid_price","bid_amount"]
[1743614539469,40.15184153,130.78,130.77,0.03]
[1743614540476,47.9404031,130.78,130.77,0.03]
[1743614541406,18.933972,130.77,130.71,95.42337771]
[1743614541694,21.21786953,130.76,130.71,95.42337771]
[1743614542301,18.933972,130.77,130.7,2.7035622]
[1743614542483,7.6481,130.75,130.7,2.7035622]
[1743614542679,7.6477,130.76,130.7,10.3545622]
[1743614542881,3.05877009,130.75,130.7,10.3545622]
[1743614543891,10.70697009,130.75,130.7,10.3545622]
[1743614544088,7.6482,130.75,130.7,10.3545622]
[1743614544594,18.933972,130.74,130.7,2.7035622]
[1743614544895,40.15184153,130.74,130.7,2.7035622]
[1743614545401,21.21786953,130.73,130.7,2.7035622]
[1743614545690,54.86836953,130.71,130.7,2.7035622]
[1743614546093,55.0105311,130.71,130.7,2.7035622]
[1743614546391,73.80234153,130.71,130.7,2.7035622]
[1743614546779,76.86195916,130.71,130.7,2.7035622]
[1743614548392,70.69121639,130.71,130.7,0.07211392]
[1743614548564,91.76692435,130.71,130.7,0.07211392]
[1743614548976,91.90908592,130.71,130.7,0.07211392]
[1743614549176,102.76184801,130.71,130.7,0.07211392]
[1743614549599,81.54397848,130.71,130.7,0.07211392]
[1743614549775,18.933972,130.7,130.64,1.6025]
[1743614549969,7.6516,130.69,130.64,9.257]
[1743614550171,39.91237972,130.71,130.64,9.257]
[1743614550388,3.05961763,130.71,130.64,9.257]
[1743614550694,3.05961763,130.69,130.65,0.14216157]
[1743614550892,3.05961763,130.69,130.66,7.72]
[1743614551888,7.6522,130.68,130.64,1.6025]
[1743614552273,18.64964886,130.67,130.62,21.8435]
[1743614552572,7.6522,130.68,130.62,6.468]
[1743614552779,7.6519,130.69,130.62,14.1237]
[1743614553103,26.30084886,130.7,130.62,33.2631]
[1743614553281,7.6508,130.71,130.63,18.79181043]
[1743614553601,21.21786953,130.72,130.63,18.79181043]
[1743614553602,7.6501,130.72,130.63,18.79181043]
[1743614553891,28.86796953,130.72,130.65,26.0]
[1743614554076,7.6501,130.72,130.66,7.72]
[1743614554472,3.06008237,130.7,130.66,7.72]
[1743614554674,3.06008237,130.7,130.66,9.3832]
[1743614555397,35.64741549,130.73,130.66,9.3832]
[1743614555972,7.6496,130.73,130.67,7.6528]
[1743614556277,3.05981116,130.69,130.67,7.6528]
[1743614556876,3.05981116,130.69,130.68,6.4847]
[1743614557387,3.05981116,130.72,130.68,6.4847]
[1743614558193,3.05981116,130.72,130.69,7.6516]
[1743614558606,9.35002754,130.7,130.69,7.6516]
[1743614560179,6.88311567,130.73,130.69,7.6516]
[1743614560591,0.063,130.72,130.69,7.6516]
[1743614561097,0.063,130.72,130.69,26.7808]
[1743614562076,0.063,130.72,130.71,26.0]
[1743614562285,0.063,130.72,130.71,33.72]
[1743614562998,0.063,130.72,130.71,33.86216157]
[1743614564275,0.063,130.72,130.71,41.3705]
[1743614564471,0.063,130.72,130.71,41.51266157]
[1743614566083,0.063,130.72,130.7,7.6508]
[1743614566286,0.063,130.72,130.7,7.7]
[1743614567012,0.063,130.72,130.69,7.6516]
[1743614567211,0.063,130.72,130.7,7.7]
[1743614569312,3.05868284,130.71,130.7,7.7]
[1743614569786,21.21786953,130.75,130.7,7.7]
[1743614570493,21.21786953,130.76,130.7,7.7]
[1743614571714,7.93242314,130.75,130.7,7.7]
[1743614573697,0.063,130.72,130.7,7.7]
[1743614575584,21.21786953,130.71,130.63,7.6552]
[1743614575812,21.21786953,130.7,130.63,15.3552]
[1743614576014,7.6505,130.71,130.63,15.3552]
[1743614576311,28.86836953,130.71,130.63,15.3552]
[1743614576989,21.21786953,130.69,130.62,15.641]
[1743614577390,21.21786953,130.69,130.62,15.6853]
[1743614578093,7.6522,130.68,130.62,15.6853]
[1743614578411,7.6522,130.68,130.62,23.341]
[1743614578613,0.063,130.72,130.63,18.79181043]
[1743614578808,0.063,130.72,130.66,26.0]
[1743614578986,21.21786953,130.71,130.62,42.4804]
[1743614579187,21.21786953,130.71,130.62,23.341]
[1743614580190,7.6511,130.7,130.62,23.341]
[1743614580810,7.6511,130.7,130.63,18.79181043]
[1743614581818,7.6505,130.71,130.64,7.6546]
[1743614582314,7.7132,130.72,130.64,7.6546]
[1743614583719,7.7132,130.72,130.64,26.7911]
[1743614584614,0.063,130.72,130.64,26.7911]
[1743614585008,0.063,130.72,130.68,26.0]
[1743614585198,0.063,130.72,130.68,33.7]
[1743614585393,0.063,130.72,130.69,18.79181043]
[1743614586815,0.063,130.72,130.71,33.6505]
[1743614588932,7.92982314,130.8,130.71,71.42644886]
[1743614589232,7.6455,130.8,130.72,18.79181043]
[1743614589412,7.6455,130.8,130.73,7.7]
[1743614589810,0.14216157,130.79,130.73,7.7]
[1743614590013,21.50219267,130.79,130.73,7.7]
[1743614590209,21.21786953,130.78,130.73,7.7]
[1743614590413,40.2940031,130.79,130.71,41.3505]
[1743614590621,26.7586,130.8,130.71,60.4768]
[1743614590622,7.6455,130.8,130.71,60.4768]
[1743614590813,7.6455,130.8,130.72,18.79181043]
[1743614591002,7.6455,130.8,130.71,60.4768]
[1743614591205,28.86336953,130.8,130.72,7.7]
[1743614591624,28.86336953,130.8,130.72,31.47190783]
[1743614592118,28.86336953,130.8,130.72,7.7]
[1743614592315,40.2940031,130.79,130.72,7.7]
[1743614592534,40.15184153,130.79,130.72,7.7]
[1743614592932,7.6448,130.81,130.73,8.1632]
[1743614593931,7.6448,130.81,130.76,26.0]
[1743614594810,65.37224153,130.83,130.76,33.6471]
[1743614594811,7.92832314,130.82,130.76,33.6471]
[1743614595308,12.01212235,130.81,130.76,33.6471]
[1743614595719,12.01212235,130.81,130.73,8.1632]
[1743614595924,12.01212235,130.81,130.74,7.7]
[1743614596122,0.28432314,130.8,130.74,7.7]
[1743614596831,0.28432314,130.72,130.64,1.5269]
[1743614597030,21.50219267,130.72,130.65,0.62]
[1743614597214,0.28432314,130.72,130.65,0.62]
[1743614597414,0.28432314,130.73,130.65,8.274]
[1743614598429,7.6499,130.72,130.65,7.654]
[1743614598631,7.6499,130.72,130.65,15.354]
[1743614599742,7.6493,130.73,130.65,15.354]
[1743614599920,7.6493,130.73,130.65,34.489]
[1743614601345,0.28432314,130.75,130.67,7.6528]
[1743614602246,48.27069267,130.75,130.67,7.6528]
[1743614602553,26.7685,130.75,130.67,7.6528]
[1743614603057,7.6481,130.75,130.67,7.6528]
[1743614603239,7.6475,130.76,130.69,7.6516]
[1743614603753,28.86536953,130.76,130.69,7.6516]
[1743614603926,47.98426953,130.76,130.69,7.6516]
[1743614604953,19.1189,130.76,130.68,7.6522]
[1743614605332,7.647,130.77,130.69,18.79181043]
[1743614605656,7.647,130.77,130.7,7.7]
[1743614606357,7.647,130.77,130.71,7.6505]
[1743614606576,7.647,130.77,130.7,15.3508]
[1743614607951,26.7628,130.78,130.7,15.3508]
[1743614608533,47.98066953,130.78,130.7,15.3508]
[1743614612778,47.98066953,130.78,130.7,16.8643]
[1743614612979,26.7628,130.78,130.7,16.8643]
[1743614613185,7.6464,130.78,130.7,16.8643]
[1743614613877,7.6464,130.78,130.71,18.79181043]
[1743614614055,7.6464,130.78,130.71,18.64964886]
[1743614614252,21.21786953,130.75,130.69,0.03]
[1743614614478,21.21786953,130.74,130.69,0.03]
[1743614615163,7.6493,130.73,130.69,0.03]
[1743614615650,7.649,130.74,130.69,0.03]
[1743614615960,8.0144,130.77,130.69,0.31432314]
[1743614616143,7.647,130.77,130.71,26.0]
[1743614616345,7.647,130.77,130.72,7.68]
[1743614616975,21.21786953,130.79,130.73,7.6493]
[1743614617165,1.6227,130.8,130.73,7.6493]
[1743614617659,1.6227,130.8,130.72,15.3297]
[1743614617660,28.86396953,130.79,130.72,15.3297]
[1743614618654,47.97856953,130.79,130.72,15.3297]
[1743614620176,47.97856953,130.79,130.72,7.6497]
[1743614620372,47.97856953,130.79,130.72,15.3297]
[1743614620558,21.21786953,130.78,130.72,7.68]
[1743614620760,47.21786953,130.76,130.69,13.7907]
[1743614621056,47.21786953,130.76,130.69,7.71]
[1743614621451,21.21786953,130.75,130.69,7.71]
[1743614621866,26.0,130.76,130.69,7.6816]
[1743614622354,26.0,130.76,130.69,26.33124886]
[1743614622555,7.6481,130.75,130.69,26.33124886]
[1743614623552,7.6481,130.75,130.69,0.03]
[1743614624068,7.6481,130.75,130.69,7.6816]
[1743614624876,7.6481,130.75,130.69,0.03]
[1743614627789,28.86596953,130.75,130.69,0.03]
[1743614628880,47.98636953,130.75,130.69,0.03]
[1743614629268,26.7685,130.75,130.69,0.03]
[1743614629586,47.98636953,130.75,130.69,0.03]
[1743614630760,26.7685,130.75,130.69,0.03]
[1743614630965,7.6481,130.75,130.69,0.03]
[1743614631989,28.86596953,130.75,130.69,0.03]
[1743614632185,47.98636953,130.75,130.69,0.03]
[1743614633681,26.7685,130.75,130.69,0.03]
[1743614635779,7.6481,130.75,130.69,0.03]
[1743614636172,7.7097,130.78,130.7,0.28432314]
[1743614636371,26.8257,130.78,130.69,18.82181043]
[1743614636575,40.45598968,130.78,130.69,18.82181043]
[1743614637586,7.7097,130.78,130.69,7.6814]
[1743614637897,21.29391534,130.72,130.69,0.03]
[1743614638388,1.6408,130.73,130.69,0.03]
[1743614638691,10.54853726,130.56,130.52,11.69830231]
[1743614638897,52.35200122,130.57,130.52,11.69830231]
[1743614639198,0.28432314,130.64,130.53,7.68]
[1743614639370,7.6569,130.6,130.53,7.68]
[1743614640188,47.57823848,130.61,130.53,7.68]
[1743614640387,55.23463848,130.61,130.53,7.68]
[1743614640689,39.9435642,130.65,130.54,18.79181043]
[1743614640893,21.57823848,130.64,130.54,18.79181043]
[1743614641194,0.14216157,130.63,130.54,18.64964886]
[1743614641384,21.43607691,130.63,130.54,18.64964886]
[1743614641581,21.29391534,130.65,130.57,26.0]
[1743614641781,0.14216157,130.65,130.58,7.68]
[1743614642681,0.28432314,130.65,130.58,7.68]
[1743614642870,15.75211647,130.59,130.58,7.68]
[1743614644291,47.90556425,130.59,130.58,7.68]
[1743614644492,47.90556425,130.59,130.58,15.62242314]
[1743614644695,71.43816998,130.62,130.58,33.68]
[1743614644997,23.91187442,130.61,130.59,286.42]
[1743614646274,71.43816998,130.62,130.59,286.42]
[1743614647890,71.43816998,130.62,130.59,294.0774]
[1743614648195,71.43816998,130.62,130.59,286.42]
[1743614648491,71.43816998,130.62,130.59,294.0774]
[1743614648707,95.25089331,130.64,130.59,294.0774]
[1743614649192,95.25089331,130.64,130.6,0.14216157]
[1743614649870,95.25089331,130.64,130.59,286.42]
[1743614651198,148.01113198,130.66,130.59,286.42]
[1743614651609,119.06361664,130.66,130.59,286.42]
[1743614652292,119.06361664,130.66,130.59,294.0772]
[1743614654076,119.06361664,130.66,130.6,0.14216157]
[1743614656195,119.06361664,130.66,130.61,7.6563]
[1743614658984,40.89559977,130.69,130.61,7.6563]
[1743614659498,11.94988443,130.69,130.62,18.79181043]
[1743614659701,11.94988443,130.69,130.64,26.0]
[1743614659903,11.94988443,130.69,130.66,26.0]
[1743614660198,11.94988443,130.69,130.62,18.79181043]
[1743614660395,11.94988443,130.69,130.63,7.6552]
[1743614660591,19.60128443,130.7,130.63,7.6552]
[1743614661693,0.063,130.69,130.63,7.6552]
[1743614664405,21.35691534,130.69,130.62,15.3355]
[1743614664804,0.063,130.69,130.62,15.3355]
[1743614665125,0.063,130.69,130.63,18.79181043]
[1743614666307,0.063,130.69,130.64,7.6546]
[1743614667009,0.063,130.69,130.64,11.44763748]
[1743614668808,0.063,130.69,130.66,33.6534]
[1743614669415,0.063,130.69,130.67,15.3695]
[1743614669915,0.063,130.69,130.67,23.022]
[1743614670092,0.063,130.69,130.67,16.9373]
[1743614670293,0.063,130.69,130.67,15.3125]
[1743614670612,0.063,130.69,130.67,7.66]
[1743614670811,0.063,130.69,130.65,286.42]
[1743614671713,26.8438,130.69,130.65,286.42]
[1743614671924,48.13771534,130.69,130.61,13.819]
[1743614674920,28.94671534,130.67,130.59,18.67964886]
[1743614675104,28.94671534,130.67,130.59,0.03]
[1743614675105,21.29391534,130.66,130.59,0.03]
[1743614675503,21.29391534,130.65,130.59,0.03]
[1743614675897,27.56351534,130.66,130.59,0.03]
[1743614676321,7.654,130.65,130.59,0.03]
[1743614677897,48.08291534,130.65,130.59,0.03]
[1743614679533,7.654,130.65,130.59,0.03]
[1743614679831,7.6531,130.67,130.61,26.0]
[1743614680515,7.6525,130.68,130.61,33.66]
[1743614681534,7.6525,130.68,130.62,7.6557]
[1743614681707,7.7148,130.69,130.62,7.6557]
[1743614682034,7.7148,130.69,130.63,18.79181043]
[1743614682609,7.7148,130.69,130.63,18.64964886]
[1743614682936,0.063,130.69,130.63,18.64964886]
[1743614683234,0.063,130.69,130.62,18.79181043]
[1743614683601,0.063,130.69,130.62,7.6557]
[1743614684504,7.7146,130.69,130.62,7.6557]
[1743614686239,0.063,130.69,130.63,0.14216157]
[1743614686418,0.063,130.69,130.63,25.33641043]
[1743614687140,0.063,130.69,130.63,6.5446]
[1743614687340,21.29391534,130.66,130.59,0.03]
[1743614687541,21.29391534,130.65,130.59,0.03]
[1743614688327,7.6546,130.64,130.59,0.03]
[1743614689936,26.7895,130.65,130.59,0.03]
[1743614692738,7.654,130.65,130.59,0.03]
[1743614695015,7.6528,130.67,130.62,26.0]
[1743614695220,7.715,130.69,130.62,26.0]
[1743614695913,0.063,130.69,130.63,18.79181043]
[1743614696122,0.063,130.69,130.63,20.34811043]
[1743614696655,0.063,130.69,130.64,7.6546]
[1743614698037,0.063,130.69,130.65,18.79181043]
[1743614698439,0.063,130.69,130.65,18.64964886]
[1743614698626,0.063,130.69,130.65,7.6535]
[1743614701649,0.063,130.69,130.66,7.66]
[1743614702222,0.063,130.69,130.67,18.64964886]
[1743614702631,0.063,130.69,130.66,7.80216157]
[1743614702941,0.063,130.69,130.6,1.6494]
[1743614703142,21.29391534,130.67,130.6,1.6494]
[1743614703348,47.29391534,130.68,130.6,0.03]
[1743614703536,7.6528,130.67,130.6,15.3467]
[1743614704553,7.6525,130.68,130.6,15.3467]
[1743614704849,7.7148,130.69,130.61,18.64964886]
[1743614705341,0.063,130.69,130.62,0.42648471]
[1743614705527,7.7147,130.69,130.63,7.6552]
[1743614706745,0.063,130.69,130.63,7.6552]
[1743614706961,0.063,130.69,130.64,18.79181043]
[1743614707531,0.063,130.69,130.63,7.6552]
[1743614707933,0.063,130.69,130.64,18.79181043]
[1743614708135,0.063,130.69,130.65,7.66]
[1743614709847,0.063,130.69,130.66,7.6534]
[1743614710347,0.063,130.69,130.65,15.3137]
[1743614711541,0.063,130.69,130.65,7.66]
[1743614711740,21.29391534,130.67,130.6,0.03]
[1743614712052,1.5651,130.68,130.6,0.03]
[1743614712053,28.94731534,130.66,130.6,0.03]
[1743614712242,26.787,130.66,130.6,0.03]
[1743614712429,48.08091534,130.66,130.6,0.03]
[1743614713260,26.787,130.66,130.6,0.03]
[1743614713556,48.08091534,130.66,130.6,0.03]
[1743614715465,19.1336,130.66,130.6,0.03]
[1743614715648,28.94671534,130.67,130.6,0.03]
[1743614716268,7.6528,130.67,130.6,0.03]
[1743614716450,0.063,130.69,130.62,26.0]
[1743614716641,0.063,130.69,130.62,33.66]
[1743614716844,21.35691534,130.69,130.62,33.66]
[1743614717343,29.00871534,130.69,130.62,33.66]
[1743614717543,29.00871534,130.69,130.62,41.3155]
[1743614717966,7.7148,130.69,130.62,41.3155]
[1743614718573,48.13791534,130.69,130.62,33.66]
[1743614718788,48.13791534,130.69,130.62,7.66]
[1743614719071,21.29391534,130.66,130.6,286.51]
[1743614719649,26.789,130.65,130.6,286.51]
[1743614720272,7.654,130.65,130.6,286.51]
[1743614720452,7.654,130.65,130.6,294.1667]
[1743614720660,7.6537,130.66,130.6,294.1667]
[1743614721885,40.42571534,130.68,130.6,294.1667]
[1743614722049,7.6528,130.67,130.6,294.1667]
[1743614722447,7.6528,130.67,130.61,0.14216157]
[1743614723678,26.784,130.68,130.61,7.79836157]
[1743614724379,26.784,130.68,130.61,7.6562]
[1743614724677,0.063,130.67,130.61,7.6562]
[1743614725752,0.063,130.67,130.62,0.14216157]
[1743614726156,0.063,130.67,130.61,7.64]
[1743614727370,0.063,130.67,130.61,15.2962]
[1743614728756,21.35691534,130.67,130.61,7.64]
[1743614728973,21.29391534,130.66,130.61,7.64]
[1743614729664,21.35691534,130.67,130.61,7.64]
[1743614729854,21.35691534,130.67,130.6,294.1669]
[1743614730451,7.6534,130.66,130.6,294.1669]
[1743614732591,7.6534,130.66,130.6,0.03]
[1743614734485,7.7158,130.67,130.6,0.03]
[1743614734989,48.14181534,130.67,130.6,0.03]
[1743614735687,21.29391534,130.66,130.6,0.03]
[1743614736168,26.8479,130.67,130.6,0.03]
[1743614736358,7.6546,130.64,130.6,0.03]
[1743614739865,48.08501534,130.64,130.6,0.03]
[1743614740063,21.29391534,130.63,130.6,0.03]
[1743614740481,21.29391534,130.62,130.6,0.03]
[1743614741187,21.29391534,130.61,130.6,0.0001]
[1743614741389,14.2822,130.6,130.59,0.0001]
[1743614741604,35.57611534,130.6,130.59,0.0001]
[1743614744617,62.29224891,130.6,130.59,0.0001]
[1743614744799,26.0,130.57,130.52,0.33]
[1743614744997,21.29391534,130.56,130.52,0.33]
[1743614745203,40.37004891,130.56,130.52,0.33]
[1743614745824,21.29391534,130.56,130.52,0.33]
[1743614746013,26.0,130.57,130.52,0.33]
[1743614746319,47.29391534,130.57,130.52,0.33]
[1743614746620,26.0,130.57,130.52,0.33]
[1743614746827,7.6593,130.56,130.52,0.33]
[1743614747125,28.95321534,130.56,130.52,0.33]
[1743614747325,28.95321534,130.56,130.5,286.54]
[1743614747502,48.10141534,130.56,130.5,286.54]
[1743614747705,40.22788734,130.54,130.47,1.5897]
[1743614747914,21.57823848,130.52,130.48,0.33]
[1743614748120,21.29391534,130.5,130.48,0.33]
[1743614748423,6.32762314,130.54,130.48,0.33]
[1743614748601,21.29391534,130.53,130.48,0.33]
[1743614748805,21.29391534,130.52,130.48,0.33]
[1743614749011,7.6622,130.51,130.45,7.9957]
[1743614749315,26.0,130.48,130.45,0.33]
[1743614749505,1.5493,130.49,130.45,0.33]
[1743614749707,55.75171534,130.51,130.45,0.33]
[1743614750226,48.11171534,130.51,130.44,2.7035622]
[1743614750526,48.11171534,130.51,130.44,10.3997622]
[1743614751023,7.6622,130.51,130.44,10.3997622]
[1743614751211,7.6618,130.52,130.44,10.3997622]
[1743614752194,28.95571534,130.52,130.44,10.3997622]
[1743614752425,7.6618,130.52,130.44,10.3997622]
[1743614753520,26.8159,130.52,130.44,10.3997622]
[1743614753724,48.10981534,130.52,130.44,10.3997622]
[1743614754096,26.8159,130.52,130.44,10.3997622]
[1743614754297,28.95571534,130.52,130.44,10.3997622]
[1743614754814,7.6618,130.52,130.44,10.3997622]
[1743614755123,28.95571534,130.52,130.44,10.3997622]
[1743614755741,26.8159,130.52,130.44,10.3997622]
[1743614755924,7.6618,130.52,130.44,10.3997622]
[1743614756442,7.6618,130.52,130.45,18.933972]
[1743614756616,7.6618,130.52,130.45,18.79181043]
[1743614756815,7.6618,130.52,130.45,0.14216157]
[1743614757519,7.6618,130.52,130.46,7.6651]
[1743614757839,7.6618,130.52,130.46,14.162]
[1743614758548,7.6618,130.52,130.46,6.4969]
[1743614760047,21.29391534,130.52,130.46,6.4969]
[1743614760250,21.29391534,130.53,130.46,6.4969]
[1743614761864,21.29391534,130.52,130.46,6.4969]
[1743614762035,7.6622,130.51,130.46,6.4969]
[1743614762453,7.6622,130.51,130.46,0.03]
[1743614763344,7.6616,130.52,130.46,0.03]
[1743614764649,21.29391534,130.52,130.46,0.03]
[1743614765667,7.6616,130.52,130.46,0.03]
[1743614766739,20.8035,130.56,130.47,1.6491]
[1743614766937,42.09741534,130.56,130.47,1.6491]
[1743614767757,7.6599,130.55,130.48,7.664]
[1743614768647,7.6599,130.55,130.49,6.2243]
[1743614768848,7.6581,130.58,130.5,0.14216157]
[1743614769050,7.7207,130.59,130.5,0.14216157]
[1743614769356,7.7207,130.59,130.49,6.2243]
[1743614769856,21.29391534,130.58,130.5,7.6628]
[1743614770039,21.29391534,130.57,130.5,7.6628]
[1743614770356,21.29391534,130.54,130.47,1.6491]
[1743614770536,21.29391534,130.51,130.46,0.03]
[1743614770733,21.29391534,130.49,130.46,0.03]
[1743614770934,6.5968,130.52,130.46,0.03]
[1743614771134,21.29391534,130.52,130.46,7.695]
[1743614771355,21.29391534,130.52,130.46,0.03]
[1743614771558,21.29391534,130.51,130.46,0.03]
[1743614771765,7.6628,130.5,130.46,0.03]
[1743614772546,28.95671534,130.5,130.46,0.03]
[1743614773660,7.6628,130.5,130.46,0.03]
[1743614773863,26.0,130.53,130.46,0.03]
[1743614774454,21.29391534,130.54,130.46,0.03]
[1743614774963,28.95431534,130.54,130.46,0.03]
[1743614775265,7.6604,130.54,130.47,26.0]
[1743614775439,7.6601,130.55,130.47,6.555]
[1743614775768,21.29391534,130.52,130.46,0.03]
[1743614775958,21.29391534,130.5,130.46,0.03]
[1743614776158,21.29391534,130.49,130.46,0.03]
[1743614776361,6.2538,130.54,130.46,0.03]
[1743614776657,48.10371534,130.55,130.46,1.5558]
[1743614776861,48.10371534,130.55,130.47,7.6645]
[1743614778262,9.2115,130.56,130.48,0.14216157]
[1743614778453,7.6581,130.58,130.48,6.1373]
[1743614779259,48.09731534,130.58,130.48,6.1373]
[1743614779443,21.29391534,130.54,130.46,9.2207]
[1743614779651,21.29391534,130.53,130.46,9.2207]
[1743614780252,7.6604,130.54,130.46,9.2207]
[1743614781171,7.6604,130.54,130.46,28.3836]
[1743614783275,21.29391534,130.52,130.46,0.03]
[1743614783463,28.3773,130.54,130.46,7.6951]
[1743614783971,49.67121534,130.54,130.46,7.6951]
[1743614784145,21.29391534,130.53,130.46,7.6951]
[1743614784346,21.29391534,130.53,130.46,0.03]
[1743614785165,7.6616,130.52,130.46,0.03]
[1743614785555,26.8157,130.52,130.46,0.03]
[1743614785761,48.10961534,130.52,130.46,0.03]
[1743614786063,26.8157,130.52,130.46,0.03]
[1743614786371,7.6616,130.52,130.46,0.03]
[1743614786571,26.8157,130.52,130.46,0.03]
[1743614787160,19.1541,130.52,130.46,0.03]
[1743614788067,7.661,130.53,130.46,0.03]
[1743614788563,48.10751534,130.53,130.46,0.03]
[1743614788958,21.29391534,130.52,130.46,0.03]
[1743614789357,7.6622,130.51,130.46,0.03]
[1743614789557,21.29391534,130.5,130.46,0.03]
[1743614789752,21.29391534,130.49,130.46,0.03]
[1743614790368,26.8178,130.51,130.46,0.03]
[1743614790584,7.6622,130.51,130.46,0.03]
[1743614791278,7.6612,130.53,130.47,7.6645]
[1743614791480,7.6612,130.53,130.46,15.3349]
[1743614791669,26.8138,130.53,130.46,0.03]
[1743614791869,21.29391534,130.5,130.46,0.03]
[1743614792069,21.29391534,130.48,130.46,0.03]
[1743614793261,28.95841534,130.47,130.46,0.03]
[1743614793461,29.24273848,130.47,130.46,0.03]
[1743614793691,7.6645,130.47,130.46,0.03]
[1743614794766,28.95841534,130.47,130.46,0.03]
[1743614794986,7.6645,130.47,130.46,0.03]
[1743614795286,28.95841534,130.47,130.46,0.03]
[1743614796275,7.6645,130.47,130.46,0.03]
[1743614797368,28.95841534,130.47,130.46,0.03]
[1743614798888,7.6645,130.47,130.46,0.03]
[1743614799186,26.8178,130.51,130.46,0.03]
[1743614799488,7.6622,130.51,130.46,0.03]
[1743614800392,26.814,130.53,130.46,0.03]
[1743614800569,26.814,130.53,130.46,6.4757]
[1743614800970,7.661,130.53,130.46,7.9968]
[1743614801889,7.661,130.53,130.47,7.6645]
[1743614802992,7.661,130.53,130.46,15.6617]
[1743614805568,7.6604,130.54,130.46,15.6617]
[1743614805773,7.6604,130.54,130.46,34.8246]
[1743614807189,1.5483,130.58,130.47,0.14216157]
[1743614807190,7.6599,130.55,130.47,0.14216157]
[1743614807494,7.6599,130.55,130.48,7.62]
[1743614808293,7.6599,130.55,130.49,0.14216157]
[1743614808993,26.8057,130.57,130.49,0.14216157]
[1743614809195,26.8057,130.57,130.48,15.2835]
[1743614809791,48.09961534,130.57,130.48,7.62]
[1743614809992,48.09961534,130.57,130.48,15.2839]
[1743614811593,48.09961534,130.57,130.48,7.62]
[1743614811775,21.29391534,130.56,130.48,7.62]
[1743614812683,21.29391534,130.56,130.46,34.595472]
[1743614812883,21.29391534,130.56,130.47,7.62]
[1743614813896,26.8096,130.55,130.47,7.62]
[1743614814593,86.40301534,130.55,130.47,7.62]
[1743614814776,21.29391534,130.54,130.46,7.9968]
[1743614816396,26.8136,130.53,130.46,7.9968]
[1743614816906,26.8136,130.53,130.46,15.6619]
[1743614817198,26.8136,130.53,130.46,7.9968]
[1743614817972,26.8136,130.53,130.46,15.6618]
[1743614818186,7.661,130.53,130.47,0.14216157]
[1743614818491,19.1501,130.55,130.48,7.664]
[1743614818669,7.6593,130.56,130.48,7.664]
[1743614818875,26.8075,130.56,130.48,7.664]
[1743614819485,26.8075,130.56,130.47,26.74033357]
[1743614821089,26.8075,130.56,130.47,7.80636157]
[1743614821287,21.29391534,130.54,130.46,7.9968]
[1743614821496,22.96011534,130.52,130.46,0.03]
[1743614822095,21.29391534,130.51,130.46,0.03]
[1743614822390,21.29391534,130.5,130.46,0.03]
[1743614822774,1.6662,130.52,130.46,0.03]
[1743614822775,21.29391534,130.49,130.46,0.03]
[1743614823409,7.664,130.48,130.46,0.03]
[1743614825509,19.1592,130.49,130.46,0.03]
[1743614828619,40.45311534,130.49,130.46,0.03]
[1743614828924,21.29391534,130.48,130.46,0.03]
[1743614829804,7.6645,130.47,130.46,0.03]
[1743614832023,28.95841534,130.47,130.46,0.0001]
[1743614833028,1.5011,130.46,130.44,6.22e-05]
[1743614833197,21.29391534,130.45,130.44,6.22e-05]